fUSD/lending_fUSD_20251109
["ID","MTS","AMOUNT","RATE_DAILY","PERIOD"]
[393429258,1762649896312,500.0,0.00039125,120]
[393429259,1762649897402,500.0,0.00039125,120]
[393429260,1762649897590,500.0,0.00039125,120]
[393429261,1762649897666,500.0,0.00039125,120]
[393429262,1762649897823,500.0,0.00039125,120]
[393429263,1762649897909,622.06,0.00039125,120]
[393429264,1762649898082,500.0,0.00039125,120]
[393429265,1762649898320,500.0,0.00039125,120]
[393429266,1762649898611,500.0,0.00039125,120]
[393429267,1762649898856,500.0,0.00039125,120]
[393429268,1762649899246,500.0,0.00039125,120]
[393429269,1762649899489,500.0,0.00039125,120]
[393429270,1762649900072,500.0,0.00039125,120]
[393429271,1762649900339,500.0,0.00039125,120]
[393429272,1762649900573,500.0,0.00039125,120]
[393429273,1762649900806,370.04,0.00039125,120]
[393429274,1762649902639,555.03,0.00039125,120]
[393429275,1762649904298,500.0,0.00039125,120]
[393429276,1762649904724,500.0,0.00039125,120]
[393429277,1762649904791,500.0,0.00039125,120]
[393429278,1762649905046,500.0,0.00039125,120]
[393429279,1762649905294,500.0,0.00039125,120]
[393429280,1762649905570,500.0,0.00039125,120]
[393429281,1762649905811,500.0,0.00039125,120]
[393429282,1762649905985,500.0,0.00039125,120]
[393429283,1762649906167,500.0,0.00039125,120]
[393429284,1762649906283,500.0,0.00039125,120]
[393429285,1762649906437,156.05846901,0.00039125,120]
[393429286,1762649906542,500.0,0.00039125,120]
[393429287,1762649906777,500.0,0.00039125,120]
[393429288,1762649907007,500.0,0.00039125,120]
[393429289,1762649907274,404.56,0.00039125,120]
[393429290,1762649907648,595.8,0.00039125,120]
[393429291,1762649909669,581.88421308,0.00039125,120]
[393429292,1762649912382,500.0,0.00039125,120]
[393429293,1762649912613,500.0,0.00039125,120]
[393429294,1762649912687,624.64877745,0.00039125,120]
[393429295,1762649912859,500.0,0.00039125,120]
[393429296,1762649913116,500.0,0.00039125,120]
[393429297,1762649913452,500.0,0.00039125,120]
[393429298,1762649913688,190.56,0.00039125,120]
[393429299,1762649915834,500.0,0.00039125,120]
[393429300,1762649916083,500.0,0.00039125,120]
[393429301,1762649916327,614.21,0.00039125,120]
[393429302,1762649917684,621.03248514,0.00039125,120]
[393429303,1762649923380,500.0,0.00039125,120]
[393429304,1762649923608,500.0,0.00039125,120]
[393429305,1762649923870,500.0,0.00039125,120]
[393429306,1762649924108,500.0,0.00039125,120]
[393429307,1762649924368,500.0,0.00039125,120]
[393429308,1762649924615,500.0,0.00039125,120]
[393429309,1762649924855,489.15,0.00039125,120]
[393429310,1762649925978,500.0,0.00039125,120]
[393429311,1762649926093,-31.43902374,0.00016737,2]
[393429312,1762649926120,-500.0,0.00016737,2]
[393429313,1762649926143,-237.74141642,0.00016766,2]
[393429314,1762649926237,500.0,0.00039125,120]
[393429315,1762649926565,500.0,0.00039125,120]
[393429316,1762649926805,500.0,0.00039125,120]
[393429317,1762649927038,500.0,0.00039125,120]
[393429318,1762649927288,500.0,0.00039125,120]
[393429319,1762649927528,500.0,0.00039125,120]
[393429320,1762649927776,500.0,0.00039125,120]
[393429321,1762649928020,500.0,0.00039125,120]
[393429322,1762649928260,166.32,0.00039125,120]
[393429323,1762649930128,500.0,0.00039125,120]
[393429324,1762649930358,500.0,0.00039125,120]
[393429325,1762649930566,-235.86870532,0.00016737,2]
[393429326,1762649930627,500.0,0.00039125,120]
[393429327,1762649930870,500.0,0.00039125,120]
[393429328,1762649931118,499.63,0.00039125,120]
[393429329,1762649933430,-208.06422054,0.00016737,2]
[393429330,1762649934546,500.0,0.00039125,120]
[393429331,1762649934807,500.0,0.00039125,120]
[393429332,1762649935070,500.0,0.00039125,120]
[393429333,1762649935303,500.0,0.00039125,120]
[393429334,1762649935548,500.0,0.00039125,120]
[393429335,1762649935816,-56.06707414,0.00016737,2]
[393429336,1762649935839,-111.42469771,0.00016737,2]
[393429337,1762649936321,500.0,0.00039125,120]
[393429338,1762649936563,500.0,0.00039125,120]
[393429339,1762649936821,500.0,0.00039125,120]
[393429340,1762649937054,500.0,0.00039125,120]
[393429341,1762649937308,500.0,0.00039125,120]
[393429342,1762649937615,500.0,0.00039125,120]
[393429343,1762649937854,500.0,0.00039125,120]
[393429344,1762649938095,536.7,0.00039125,120]
[393429345,1762649939008,-172.42193912,0.00016737,2]
[393429346,1762649943436,617.3866654,0.00039125,120]
[393429347,1762649947352,500.0,0.00039125,120]
[393429348,1762649947579,192.82,0.00039125,120]
[393429349,1762649950366,587.00005505,0.00039125,120]
[393429350,1762649952237,621.6100198,0.00039125,120]
[393429351,1762649956102,-216.15336317,0.00016737,2]
[393429352,1762649956127,-114.40884368,0.00016737,2]
[393429353,1762649957211,206.936331,0.00016,2]
[393429354,1762649960847,-183.45986164,0.00016737,2]
[393429355,1762649961206,500.0,0.00039125,120]
[393429356,1762649961481,306.94,0.00039125,120]
[393429357,1762649962360,-161.15,0.00016737,2]
[393429358,1762649964907,-40.98129468,0.00016737,2]
[393429359,1762649964929,-270.65540832,0.00016737,2]
[393429360,1762649968033,-229.34459168,0.00016737,2]
[393429361,1762649968064,-117.93870532,0.00016737,2]
[393429362,1762649971271,-276.0,0.00016737,2]
[393429363,1762649974076,-106.06129468,0.00016737,2]
[393429364,1762649974100,-76.8800497,0.00016737,2]
[393429365,1762649976364,-300.0,0.00016737,2]
[393429366,1762649978899,-123.1199503,0.00016737,2]
[393429367,1762649978921,-144.90005919,0.00016737,2]
[393429368,1762649981556,-251.82618244,0.00016737,2]
[393429369,1762649981837,1716.12,0.00016438,2]
[393429370,1762649982758,500.0,0.00039126,120]
[393429371,1762649983029,500.0,0.00039126,120]
[393429372,1762649983311,500.0,0.00039126,120]
[393429373,1762649983558,500.0,0.00039126,120]
[393429374,1762649983811,319.9,0.00039126,120]
[393429375,1762649985716,500.0,0.00039126,120]
[393429376,1762649985984,500.0,0.00039126,120]
[393429377,1762649986226,500.0,0.00039126,120]
[393429378,1762649986488,311.01,0.00039126,120]
[393429379,1762649989950,500.0,0.00039126,120]
[393429380,1762649990188,500.0,0.00039126,120]
[393429381,1762649990422,500.0,0.00039126,120]
[393429382,1762649990657,500.0,0.00039126,120]
[393429383,1762649990930,500.0,0.00039126,120]
[393429384,1762649991160,500.0,0.00039126,120]
[393429385,1762649991743,500.0,0.00039126,120]
[393429386,1762649991997,500.0,0.00039126,120]
[393429387,1762649992251,500.0,0.00039126,120]
[393429388,1762649992486,500.0,0.00039126,120]
[393429389,1762649992707,500.0,0.00039126,120]
[393429390,1762649992941,584.54,0.00039126,120]
[393429391,1762649996650,610.75364156,0.00039126,120]
[393429392,1762650003603,160.0,0.000301,120]
[393429393,1762650005303,481.61716415,0.00039126,120]
[393429394,1762650007181,488.36988098,0.00039126,120]
[393429395,1762650009110,500.0,0.00039126,120]
[393429396,1762650009162,460.0,0.00039126,120]
[393429397,1762650009351,500.0,0.00039126,120]
[393429398,1762650009602,500.0,0.00039126,120]
[393429399,1762650009842,500.0,0.00039126,120]
[393429400,1762650010093,481.03,0.00039126,120]
[393429401,1762650010969,500.0,0.00039126,120]
[393429402,1762650011202,500.0,0.00039126,120]
[393429403,1762650011434,434.62,0.00039126,120]
[393429404,1762650016059,-226.23568842,0.00016737,2]
[393429405,1762650016686,500.0,0.00039126,120]
[393429406,1762650017095,500.0,0.00039126,120]
[393429407,1762650017154,264.7,0.00039126,120]
[393429408,1762650019625,500.0,0.00039126,120]
[393429409,1762650019657,-273.76431158,0.00016737,2]
[393429410,1762650019681,-128.23401931,0.00016737,2]
[393429411,1762650019856,500.0,0.00039126,120]
[393429412,1762650020141,500.0,0.00039126,120]
[393429413,1762650020373,249.22,0.00039126,120]
[393429414,1762650022214,500.0,0.00039126,120]
[393429415,1762650022485,500.0,0.00039126,120]
[393429416,1762650022724,500.0,0.00039126,120]
[393429417,1762650022966,500.0,0.00039126,120]
[393429418,1762650023194,484.66,0.00039126,120]
[393429419,1762650023540,-177.76598069,0.00016737,2]
[393429420,1762650023565,-241.12754132,0.00016752,2]
[393429421,1762650027274,500.0,0.00039126,120]
[393429422,1762650027563,160.79973374,0.00039126,120]
[393429423,1762650028369,598.6070505,0.00039126,120]
[393429424,1762650028550,500.0,0.00039126,120]
[393429425,1762650028875,500.0,0.00039126,120]
[393429426,1762650029128,452.94,0.00039126,120]
[393429427,1762650031594,500.0,0.00039126,120]
[393429428,1762650031843,500.0,0.00039126,120]
[393429429,1762650032074,500.0,0.00039126,120]
[393429430,1762650032331,500.0,0.00039126,120]
[393429431,1762650032571,569.54,0.00039126,120]
[393429432,1762650040012,500.0,0.00039126,120]
[393429433,1762650040247,500.0,0.00039126,120]
[393429434,1762650040507,610.78,0.00039126,120]
[393429435,1762650041126,500.0,0.00039126,120]
[393429436,1762650041254,500.0,0.00039126,120]
[393429437,1762650041374,500.0,0.00039126,120]
[393429438,1762650041496,500.0,0.00039126,120]
[393429439,1762650041611,160.94,0.00039126,120]
[393429440,1762650042057,371.52,0.00039126,120]
[393429441,1762650046458,324.45564769,0.00039126,120]
[393429442,1762650050731,561.04086281,0.00039126,120]
[393429443,1762650058561,500.0,0.00039126,120]
[393429444,1762650058806,500.0,0.00039126,120]
[393429445,1762650059060,242.08,0.00039126,120]
[393429446,1762650061354,161.84,0.000167,2]
[393429447,1762650063403,500.0,0.00039126,120]
[393429448,1762650063667,500.0,0.00039126,120]
[393429449,1762650063897,552.64,0.00039126,120]
[393429450,1762650067545,500.0,0.00039126,120]
[393429451,1762650067790,500.0,0.00039126,120]
[393429452,1762650068028,500.0,0.00039126,120]
[393429453,1762650068277,274.86,0.00039126,120]
[393429454,1762650071943,500.0,0.00039126,120]
[393429455,1762650072174,500.0,0.00039126,120]
[393429456,1762650072402,500.0,0.00039126,120]
[393429457,1762650072674,500.0,0.00039126,120]
[393429458,1762650073002,500.0,0.00039126,120]
[393429459,1762650073248,500.0,0.00039126,120]
[393429460,1762650073527,500.0,0.00039126,120]
[393429461,1762650073873,500.0,0.00039126,120]
[393429462,1762650073980,500.0,0.00039126,120]
[393429463,1762650074225,500.0,0.00039126,120]
[393429464,1762650074279,500.0,0.00039126,120]
[393429465,1762650074494,500.0,0.00039126,120]
[393429466,1762650074546,448.94,0.00039126,120]
[393429467,1762650074863,628.36,0.00039126,120]
[393429468,1762650075436,500.0,0.00039126,120]
[393429469,1762650075693,500.0,0.00039126,120]
[393429470,1762650075929,532.9,0.00039126,120]
[393429471,1762650076090,-58.87245868,0.00016752,2]
[393429472,1762650076114,-239.96157287,0.00016752,2]
[393429473,1762650080602,-7.28034669,0.00016752,2]
[393429474,1762650080628,-292.71965331,0.00016755,2]
[393429475,1762650081344,600.0,0.00039126,120]
[393429476,1762650082100,-7.28034669,0.00016755,2]
[393429477,1762650082122,-195.0,0.00016759,2]
[393429478,1762650082145,-21.90436893,0.00016766,2]
[393429479,1762650083129,500.0,0.00039126,120]
[393429480,1762650083379,500.0,0.00039126,120]
[393429481,1762650083663,472.98,0.00039126,120]
[393429482,1762650087850,500.0,0.00039126,120]
[393429483,1762650088093,500.0,0.00039126,120]
[393429484,1762650088364,173.34,0.00039126,120]
[393429485,1762650090235,575.0286454,0.00039126,120]
[393429486,1762650094078,500.0,0.00039126,120]
[393429487,1762650094312,394.43,0.00039126,120]
[393429488,1762650094673,500.0,0.00039126,120]
[393429489,1762650094925,500.0,0.00039126,120]
[393429490,1762650095176,500.0,0.00039126,120]
[393429491,1762650095440,380.99,0.00039126,120]
[393429492,1762650098994,500.0,0.00039126,120]
[393429493,1762650099065,187.01,0.00039126,120]
[393429494,1762650100502,600.63,0.00039126,120]
[393429495,1762650101700,500.0,0.00039126,120]
[393429496,1762650101955,500.0,0.00039126,120]
[393429497,1762650102198,500.0,0.00039126,120]
[393429498,1762650102473,496.33808725,0.00039126,120]
[393429499,1762650102623,500.0,0.00039126,120]
[393429500,1762650102852,222.75,0.00039126,120]
[393429501,1762650105699,594.76838442,0.00039126,120]
[393429502,1762650122837,615.29758284,0.00039126,120]
[393429503,1762650131035,500.0,0.00039126,120]
[393429504,1762650131430,500.0,0.00039126,120]
[393429505,1762650131527,500.0,0.00039126,120]
[393429506,1762650131764,560.27,0.00039126,120]
[393429507,1762650134803,500.0,0.00039126,120]
[393429508,1762650135084,164.64429191,0.00039126,120]
[393429510,1762650136754,500.0,0.00039126,120]
[393429511,1762650136984,614.79,0.00039126,120]
[393429512,1762650141322,500.0,0.00039126,120]
[393429513,1762650141698,477.82,0.00039126,120]
[393429514,1762650141987,500.0,0.00039126,120]
[393429515,1762650142257,320.47,0.00039126,120]
[393429516,1762650145290,500.0,0.00039126,120]
[393429517,1762650145533,480.25,0.00039126,120]
[393429518,1762650147910,500.0,0.00039126,120]
[393429519,1762650148184,152.47,0.00039126,120]
[393429520,1762650150431,559.23,0.00039126,120]
[393429521,1762650154686,500.0,0.00039126,120]
[393429522,1762650154924,208.7,0.00039126,120]
[393429523,1762650159622,500.0,0.00039126,120]
[393429524,1762650159842,156.91,0.00039126,120]
[393429525,1762650160275,500.0,0.00039126,120]
[393429526,1762650160510,178.08,0.00039126,120]
[393429527,1762650161920,500.0,0.00039126,120]
[393429528,1762650162323,266.44,0.00039126,120]
[393429529,1762650165959,500.0,0.00039126,120]
[393429530,1762650166199,340.21,0.00039126,120]
[393429531,1762650171345,628.21936615,0.00039126,120]
[393429532,1762650173228,500.0,0.00039126,120]
[393429533,1762650173474,355.87,0.00039126,120]
[393429534,1762650174758,598.43,0.00039126,120]
[393429535,1762650175206,500.0,0.00039126,120]
[393429537,1762650175426,155.63957889,0.00039126,120]
[393429538,1762650181234,500.0,0.00039126,120]
[393429539,1762650181476,645.84610866,0.00039126,120]
[393429540,1762650181651,569.83582673,0.00039126,120]
[393429541,1762650184717,500.0,0.00039126,120]
[393429542,1762650184956,500.0,0.00039126,120]
[393429543,1762650185198,289.53,0.00039126,120]
[393429544,1762650186954,1000.0,0.00039126,120]
[393429545,1762650187209,1000.0,0.00039126,120]
[393429546,1762650188147,603.6,0.00039126,120]
[393429547,1762650188673,500.0,0.00039126,120]
[393429548,1762650188920,500.0,0.00039126,120]
[393429549,1762650189167,218.05,0.00039126,120]
[393429550,1762650189547,2090.0,0.000163,2]
[393429551,1762650192013,598.69,0.00039126,120]
[393429552,1762650199783,567.79,0.00039126,120]
[393429553,1762650205184,500.0,0.00039126,120]
[393429554,1762650205429,481.22,0.00039126,120]
[393429555,1762650206322,1439.37142683,0.00039126,120]
[393429556,1762650208524,500.0,0.00039126,120]
[393429557,1762650208761,182.2085406,0.00039126,120]
[393429558,1762650217299,561.6866097,0.00039126,120]
[393429559,1762650219165,500.0,0.00039126,120]
[393429560,1762650219414,559.94337858,0.00039126,120]
[393429561,1762650221332,498.47453645,0.00039126,120]
[393429562,1762650226455,600.65305085,0.00039126,120]
[393429563,1762650233194,610.36,0.00039126,120]
[393429564,1762650233930,500.0,0.00039126,120]
[393429565,1762650234177,524.99,0.00039126,120]
[393429566,1762650235196,967.02577804,0.00039126,120]
[393429567,1762650237449,500.0,0.00039126,120]
[393429568,1762650237699,237.81,0.00039126,120]
[393429569,1762650237865,610.91,0.00039126,120]
[393429570,1762650241049,-40.35421465,0.00016766,2]
[393429571,1762650241073,-126.30578535,0.00016779,2]
[393429572,1762650243425,500.0,0.00039126,60]
[393429573,1762650243955,443.26,0.00039126,60]
[393429574,1762650248438,609.22228302,0.00039126,120]
[393429575,1762650256054,-173.69421465,0.00016779,2]
[393429576,1762650256085,-184.79538882,0.00016779,2]
[393429577,1762650256111,-162.43659219,0.00016787,2]
[393429578,1762650256791,201.072416,0.00016,2]
[393429579,1762650257032,500.0,0.00039126,120]
[393429580,1762650257452,475.23,0.00039126,120]
[393429581,1762650268019,460.0,0.00039126,120]
[393429582,1762650273215,637.46931157,0.00039126,120]
[393429583,1762650301094,-137.56340781,0.00016787,2]
[393429584,1762650301117,-150.0,0.00016795,2]
[393429585,1762650301138,-19.03514962,0.00016821,2]
[393429586,1762650302700,-118.65421475,0.00016821,2]
[393429587,1762650302730,-76.34578525,0.00016827,2]
[393429589,1762650331087,-227.69981362,0.00016815,2]
[393429591,1762650362067,159.28,0.00015511,2]
[393429592,1762650374169,596.81733532,0.0003913,120]
[393429593,1762650396140,614.44882633,0.0003913,120]
[393429597,1762650415042,2204.135134,0.00016649,2]
[393429598,1762650415069,2749.21613989,0.00016649,2]
[393429600,1762650447112,157.85,8.287e-05,2]
[393429601,1762650447312,157.85,0.00010941,2]
[393429602,1762650447524,157.85,0.00013594,2]
[393429603,1762650447725,157.85,0.00016248,2]
[393429604,1762650486536,591.86093081,0.0003913,120]
[393429605,1762650570922,561.31679387,0.0003913,120]
[393429606,1762650584214,216.26914184,0.000167,2]
[393429607,1762650586422,250.0,0.00016202,2]
[393429608,1762650621142,205.42019314,0.00015974,2]
[393429611,1762650632021,-193.7723843,0.00016738,2]
[393429612,1762650632032,-437.0,0.00016745,2]
[393429613,1762650632042,-1199.71927353,0.00016745,2]
[393429614,1762650632134,-0.28072647,0.00016745,2]
[393429615,1762650632144,-300.0,0.00016745,2]
[393429616,1762650632154,-306.0,0.00016745,2]
[393429617,1762650632164,-195.0,0.00016745,2]
[393429618,1762650632174,-195.0,0.00016746,2]
[393429619,1762650632184,-500.0,0.00016746,2]
[393429620,1762650632194,-348.53088962,0.00016746,2]
[393429621,1762650632205,-464.18514888,0.00016746,2]
[393429622,1762650632215,-500.0,0.00016746,2]
[393429623,1762650632225,-500.0,0.00016746,2]
[393429624,1762650632235,-511.71790401,0.00016746,2]
[393429625,1762650632245,-628.94347418,0.00016746,2]
[393429626,1762650632254,-550.0,0.00016746,2]
[393429627,1762650632263,-517.84451115,0.00016746,2]
[393429628,1762650632273,-11067.29974825,0.00016747,2]
[393429629,1762650632298,-99829.75452687,0.00016747,2]
[393429630,1762650632310,-599.83403481,0.00016747,2]
[393429631,1762650632330,-666.0,0.00016747,2]
[393429632,1762650632350,-2774.295589,0.00016747,2]
[393429633,1762650632362,-4460.83994313,0.00016747,2]
[393429634,1762650632373,-500.0,0.00016747,2]
[393429644,1762650638030,-32020.21421943,0.00016747,2]
[393429645,1762650638042,-3597.61991677,0.00016747,2]
[393429646,1762650638086,-1108.713,0.00016747,2]
[393429647,1762650638098,-659.28605116,0.00016747,2]
[393429648,1762650638144,-564.0886184,0.00016747,2]
[393429649,1762650638202,-5724.90587735,0.00016747,2]
[393429693,1762650640074,-6040.21632456,0.00016747,2]
[393429706,1762650640184,-743.63443256,0.00016747,2]
[393429712,1762650640239,-1178.79463222,0.00016747,2]
[393429717,1762650640296,-1357.45514549,0.00016747,2]
[393429719,1762650640308,-11490.25000048,0.00016747,2]
[393429734,1762650640978,-1.7e-07,0.00016747,2]
[393429735,1762650640990,-453.46300472,0.00016747,2]
[393429739,1762650643193,-166.66,0.00016727,2]
[393429740,1762650643204,-449.70239535,0.00016747,2]
[393429741,1762650643215,-641.99246739,0.00016747,2]
[393429742,1762650643252,-78138.97639689,0.00016747,2]
[393429743,1762650643262,-5644.7247202,0.00016749,2]
[393429744,1762650643271,-81680.57380977,0.00016749,2]
[393429745,1762650646251,-1587.03359657,0.00016749,2]
[393429747,1762650646315,-6101.21941024,0.00016749,2]
[393429748,1762650673704,5659.46,0.00016237,2]
[393429749,1762650746382,200.0,0.00016211,2]
[393429750,1762650770879,88.24452513,0.00016664,2]
[393429751,1762650770902,420.42920656,0.00016664,2]
[393429752,1762650773782,167.1132101,0.00016639,2]
[393429753,1762650777265,1638.95,0.00016,2]
[393429754,1762650813934,1000.0,0.00016647,2]
[393429755,1762650832043,2500.0,0.00016647,2]
[393429756,1762650849879,1914.02119268,0.00016664,2]
[393429757,1762650867310,1852.42,0.00016229,2]
[393429758,1762650912880,239.00117468,0.00039134,120]
[393429759,1762650977742,-1200.0,0.00016738,2]
[393429760,1762650977763,-300.0,0.00016738,2]
[393429761,1762650977784,-1200.0,0.00016738,2]
[393429762,1762650977805,-300.0,0.00016738,2]
[393429763,1762650977832,-151.0,0.00016739,2]
[393429764,1762650977855,-151.0,0.00016739,2]
[393429765,1762650977878,-151.0,0.00016739,2]
[393429766,1762650977903,-151.0,0.00016739,2]
[393429767,1762650977923,-151.0,0.00016739,2]
[393429768,1762650977944,-151.0,0.00016739,2]
[393429769,1762650977969,-151.0,0.00016739,2]
[393429770,1762650978002,-151.0,0.00016739,2]
[393429771,1762650978024,-297.65800971,0.00016739,2]
[393429772,1762650978046,-151.0,0.00016739,2]
[393429773,1762650978067,-151.0,0.00016739,2]
[393429774,1762650978088,-151.0,0.00016739,2]
[393429775,1762650978110,-213.27159213,0.00016739,2]
[393429776,1762650978131,-500.0,0.00016746,2]
[393429777,1762650978151,-500.0,0.00016746,2]
[393429778,1762650978172,-500.0,0.00016746,2]
[393429779,1762650978194,-300.0,0.00016748,2]
[393429780,1762650978216,-550.0,0.00016748,2]
[393429781,1762650978239,-2478.07039816,0.00016748,2]
[393429784,1762651021476,507.07639066,0.0001666,2]
[393429785,1762651021503,167.0514617,0.0001666,2]
[393429788,1762651055517,796.24,0.00016239,2]
[393429789,1762651066378,395.18100197,0.00039132,120]
[393429795,1762651280715,217.38337627,0.00016655,2]
[393429796,1762651281258,893.72598381,0.00016459,2]
[393429797,1762651305509,7925.60917822,0.00016647,2]
[393429798,1762651305533,10000.01,0.00016647,2]
[393429799,1762651305556,10000.01,0.00016647,2]
[393429800,1762651305580,10000.01,0.00016647,2]
[393429801,1762651305603,10000.01,0.00016647,2]
[393429802,1762651305628,10000.01,0.00016647,2]
[393429803,1762651305651,10000.01,0.00016647,2]
[393429804,1762651305674,10000.01,0.00016647,2]
[393429805,1762651305698,10000.01,0.00016647,2]
[393429806,1762651305721,10000.01,0.00016647,2]
[393429807,1762651305750,10000.01,0.00016647,2]
[393429808,1762651305777,10000.01,0.00016647,2]
[393429809,1762651305808,10000.01,0.00016647,2]
[393429810,1762651305833,10000.01,0.00016647,2]
[393429811,1762651305857,10000.01,0.00016647,2]
[393429812,1762651305890,272074.25082178,0.00016647,2]
[393429815,1762651338560,14768.655371,0.00016661,2]
[393429816,1762651345750,-300.0,0.00016745,2]
[393429817,1762651345773,-550.0,0.00016745,2]
[393429818,1762651345795,-300.0,0.00016745,2]
[393429819,1762651345822,-500.0,0.00016746,2]
[393429820,1762651345846,-1200.0,0.00016746,2]
[393429821,1762651345868,-300.0,0.00016746,2]
[393429822,1762651345891,-500.0,0.00016746,2]
[393429823,1762651345913,-180.12932523,0.00016746,2]
[393429824,1762651345941,-500.0,0.00016746,2]
[393429825,1762651345967,-500.0,0.00016746,2]
[393429826,1762651345989,-402.69157207,0.00016746,2]
[393429827,1762651346012,-500.0,0.00016746,2]
[393429828,1762651346040,-500.0,0.00016746,2]
[393429829,1762651346065,-500.0,0.00016746,2]
[393429830,1762651346087,-330.59474864,0.00016746,2]
[393429831,1762651346112,-500.0,0.00016746,2]
[393429832,1762651346135,-500.0,0.00016746,2]
[393429833,1762651346160,-500.0,0.00016746,2]
[393429834,1762651346185,-500.0,0.00016746,2]
[393429835,1762651346207,-500.0,0.00016746,2]
[393429836,1762651346232,-500.0,0.00016746,2]
[393429837,1762651346257,-500.0,0.00016746,2]
[393429838,1762651346284,-500.0,0.00016746,2]
[393429839,1762651346308,-500.0,0.00016746,2]
[393429840,1762651346332,-500.0,0.00016746,2]
[393429841,1762651346358,-500.0,0.00016746,2]
[393429842,1762651346381,-500.0,0.00016746,2]
[393429843,1762651346405,-500.0,0.00016746,2]
[393429844,1762651346431,-500.0,0.00016746,2]
[393429845,1762651346455,-500.0,0.00016746,2]
[393429846,1762651346479,-500.0,0.00016746,2]
[393429847,1762651346505,-500.0,0.00016746,2]
[393429848,1762651346528,-500.0,0.00016746,2]
[393429849,1762651346553,-500.0,0.00016746,2]
[393429850,1762651346577,-500.0,0.00016746,2]
[393429851,1762651346601,-500.0,0.00016746,2]
[393429852,1762651346625,-500.0,0.00016746,2]
[393429853,1762651346648,-500.0,0.00016746,2]
[393429854,1762651346673,-500.0,0.00016746,2]
[393429855,1762651346697,-430.65495625,0.00016746,2]
[393429856,1762651346721,-500.0,0.00016746,2]
[393429857,1762651346745,-500.0,0.00016746,2]
[393429858,1762651346769,-500.0,0.00016746,2]
[393429859,1762651346793,-500.0,0.00016746,2]
[393429860,1762651346817,-500.0,0.00016746,2]
[393429861,1762651346852,-500.0,0.00016746,2]
[393429862,1762651346879,-500.0,0.00016746,2]
[393429863,1762651346904,-500.0,0.00016746,2]
[393429864,1762651346933,-500.0,0.00016746,2]
[393429865,1762651346960,-500.0,0.00016746,2]
[393429866,1762651347181,-500.0,0.00016746,2]
[393429867,1762651347209,-500.0,0.00016746,2]
[393429868,1762651347235,-500.0,0.00016746,2]
[393429869,1762651347260,-500.0,0.00016746,2]
[393429870,1762651347284,-500.0,0.00016746,2]